[Event "ENG-ch Women 2019"]
[Site "Hull"]
[Date "2019.08.31"]
[Round "3.15"]
[White "Chaban, Roxolana"]
[Black "Mackenzie, Kira"]
[Result "1-0"]
[ECO "C53"]
[WhiteElo "1281"]
[BlackElo "1142"]
[Annotator "NA"]
[PlyCount "131"]
[EventDate "2019.08.30"]
[EventType "swiss"]
[EventCountry "ENG"]
[SourceTitle "playchess.com"]
[Source "ChessBase"]
[SourceQuality "1"]
[TimeControl "5400+30"]

1. e4 {[%emt 0:00:00]} e5 {[%emt 0:00:00]} 2. Nf3 {[%emt 0:00:00]} Nc6 {[%emt 0:00:00]} 3. Bc4 {[%emt 0:00:00]} Bc5 {[%emt 0:00:06]} 4. c3 {[%emt 0:00:02]} f6 {[%emt 0:01:53]} 5. d4 {[%emt 0:06:51]} exd4 {[%emt 0:03:23]} 6. cxd4 {[%emt 0:01:09]} Bb6 {[%emt 0:00:58]} 7. O-O {[%emt 0:02:13]} Nge7 {[%emt 0:01:11]} 8. Nc3 {[%emt 0:03:45]} Ba5 {[%emt 0:01:49]} 9. Re1 {[%emt 0:06:05]} d6 {[%emt 0:01:49]} 10. h3 {[%emt 0:04:11]} Ng6 {[%emt 0:02:46]} 11. a3 {[%emt 0:06:51]} Bb6 {[%emt 0:03:25]} 12. b4 {[%emt 0:05:38]} a6 {[%emt 0:04:14]} 13. Bb2 {[%emt 0:03:50]} Bd7 {[%emt 0:01:23]} 14. Nd5 {[%emt 0:09:10]} Nce7 {[%emt 0:02:20]} 15. Nxb6 {[%emt 0:03:53]} cxb6 {[%emt 0:00:14]} 16. e5 {[%emt 0:02:33]} d5 {[%emt 0:13:35]} 17. Bb3 {[%emt 0:04:53]} Bc6 {[%emt 0:01:18]} 18. exf6 {[%emt 0:07:57]} gxf6 {[%emt 0:00:16]} 19. Re6 {[%emt 0:02:01]} O-O {[%emt 0:01:31]} 20. Qd2 {[%emt 0:05:17]} Nf5 {[%emt 0:01:49]} 21. Bc2 {[%emt 0:03:00]} Ng7 {[%emt 0:01:10]} 22. Re2 {[%emt 0:02:53]} Bb5 {[%emt 0:01:05]} 23. Re3 {[%emt 0:02:14]} Qd7 {[%emt 0:03:55]} 24. Rae1 {[%emt 0:02:01]} Nf5 {[%emt 0:01:05]} 25. Rc3 {[%emt 0:05:47]} Nd6 {[%emt 0:03:59]} 26. Bd3 {[%emt 0:04:00]} Bxd3 {[%emt 0:00:28]} 27. Qxd3 {[%emt 0:01:04]} Nf4 {[%emt 0:00:58]} 28. Qe3 {[%emt 0:00:49]} Ng6 {[%emt 0:01:47]} 29. Qe6+ {[%emt 0:01:04]} Qxe6 {[%emt 0:00:11]} 30. Rxe6 {[%emt 0:00:06]} Nc4 {[%emt 0:00:59]} 31. Bc1 {[%emt 0:00:44]} Kg7 {[%emt 0:01:07]} 32. Nd2 {[%emt 0:00:40]} Nxd2 {[%emt 0:00:49]} 33. Bxd2 {[%emt 0:00:06]} b5 {[%emt 0:01:15]} 34. Rc7+ {[%emt 0:00:51]} Rf7 {[%emt 0:00:16]} 35. Rxf7+ {[%emt 0:00:55]} Kxf7 {[%emt 0:00:08]} 36. Rd6 {[%emt 0:00:29]} Ne7 {[%emt 0:01:19]} 37. g4 {[%emt 0:00:58]} Rc8 {[%emt 0:03:20]} 38. Rb6 {[%emt 0:00:53]} Rc2 {[%emt 0:00:28]} 39. Bf4 {[%emt 0:00:44]} Ng6 {[%emt 0:06:56]} 40. Rxb7+ {[%emt 0:00:11]} Kg8 {[%emt 0:00:19]} 41. Be3 {[%emt 0:01:08]} Rc3 {[%emt 0:00:18]} 42. Rb6 {[%emt 0:00:41]} Rxa3 {[%emt 0:00:42]} 43. Rxf6 {[%emt 0:00:29]} a5 {[%emt 0:01:22]} 44. bxa5 {[%emt 0:00:26]} Rxa5 {[%emt 0:00:02]} 45. Rb6 {[%emt 0:00:25]} Nh4 {[%emt 0:01:57]} 46. Kf1 {[%emt 0:00:44]} Ra1+ {[%emt 0:00:21]} 47. Ke2 {[%emt 0:00:29]} Ra2+ {[%emt 0:00:05]} 48. Kd1 {[%emt 0:01:01]} Rb2 {[%emt 0:00:54]} 49. Kc1 {[%emt 0:00:29]} Rb4 {[%emt 0:00:50]} 50. Rd6 {[%emt 0:01:01]} Nf3 {[%emt 0:00:59]} 51. Rxd5 {[%emt 0:00:39]} Rc4+ {[%emt 0:00:03]} 52. Kb2 {[%emt 0:00:27]} Ne1 {[%emt 0:00:27]} 53. Rxb5 {[%emt 0:01:01]} Nd3+ {[%emt 0:00:28]} 54. Kb3 {[%emt 0:00:26]} Rc6 {[%emt 0:00:37]} 55. d5 {[%emt 0:00:55]} Rf6 {[%emt 0:00:03]} 56. Rb8+ {[%emt 0:00:50]} Kg7 {[%emt 0:00:08]} 57. Bd4 {[%emt 0:00:17]} Nxf2 {[%emt 0:00:31]} 58. Bxf6+ {[%emt 0:00:10]} Kxf6 {[%emt 0:00:03]} 59. Rf8+ {[%emt 0:00:07]} Ke5 {[%emt 0:00:10]} 60. Rxf2 {[%emt 0:00:05]} Kxd5 {[%emt 0:00:02]} 61. Rf7 {[%emt 0:00:10]} Ke4 {[%emt 0:00:06]} 62. Rxh7 {[%emt 0:00:07]} Kf4 {[%emt 0:00:06]} 63. Rh5 {[%emt 0:00:30]} Ke4 {[%emt 0:00:16]} 64. Rf5 {[%emt 0:00:24]} Kd4 {[%emt 0:00:11]} 65. h4 {[%emt 0:00:10]} Ke4 {[%emt 0:00:06]} 66. h5 {[%emt 0:00:05]} 1-0

[Event "ENG-ch Women 2019"]
[Site "Hull"]
[Date "2019.09.01"]
[Round "4.1"]
[White "Toma, Katarzyna"]
[Black "Head, Louise"]
[Result "1/2-1/2"]
[ECO "B17"]
[WhiteElo "2229"]
[BlackElo "2092"]
[Annotator "ChessBase"]
[PlyCount "90"]
[EventDate "2019.08.30"]
[EventType "swiss"]
[EventCountry "ENG"]
[SourceTitle "playchess.com"]
[Source "ChessBase"]
[SourceQuality "1"]
[TimeControl "5400+30"]

1. e4 {[%emt 0:00:00]} c6 {[%emt 0:00:00]} 2. d4 {[%emt 0:00:00]} d5 {[%emt 0:00:00]} 3. Nc3 {[%emt 0:00:00]} dxe4 {[%emt 0:00:00]} 4. Nxe4 {[%emt 0:00:00]} Nd7 {[%emt 0:00:02]} 5. Bd3 {[%emt 0:00:05]} Ngf6 {[%emt 0:00:14]} 6. Ng5 {[%emt 0:00:23]} e6 {[%emt 0:00:22]} 7. N1f3 {[%emt 0:00:15]} Bd6 {[%emt 0:00:32]} 8. Qe2 {[%emt 0:00:33]} h6 {[%emt 0:00:38]} 9. Ne4 {[%emt 0:00:21]} Nxe4 {[%emt 0:00:13]} 10. Qxe4 {[%emt 0:00:06]} Qc7 {[%emt 0:00:23]} 11. Qg4 {[%emt 0:00:51]} Kf8 {[%emt 0:00:24]} 12. O-O {[%emt 0:01:55]} b6 {[%emt 0:02:36]} 13. b3 {[%emt 0:01:25]} Bb7 {[%emt 0:13:19]} 14. Bb2 {[%emt 0:00:24]} Nf6 {[%emt 0:05:04]} 15. Qh4 {[%emt 0:00:22]} Ke7 {[%emt 0:02:01]} 16. Ne5 {[%emt 0:04:42]} g5 {[%emt 0:10:43]} 17. Qh3 {[%emt 0:01:58]} Nd5 {[%emt 0:14:16]} 18. g3 {[%emt 0:09:28]} Bxe5 {[%emt 0:05:48]} 19. dxe5 {[%emt 0:00:06]} c5 {[%emt 0:00:21]} 20. f3 {[%emt 0:17:57]} Rag8 {[%emt 0:05:14]} 21. Be4 {[%emt 0:01:50]} h5 {[%emt 0:05:57]} 22. c4 {[%emt 0:11:07]} Ne3 {[%emt 0:09:29]} 23. Rfe1 {[%emt 0:00:05]} Bxe4 {[%emt 0:00:23]} 24. Rxe3 {[%emt 0:00:03]} Bf5 {[%emt 0:02:03]} 25. Qg2 {[%emt 0:03:13]} g4 {[%emt 0:02:57]} 26. Rd1 {[%emt 0:02:51]} Rd8 {[%emt 0:02:40]} 27. Rd6 {[%emt 0:01:07]} Rhg8 {[%emt 0:00:43]} 28. fxg4 {[%emt 0:02:14]} hxg4 {[%emt 0:04:09]} 29. Qf2 {[%emt 0:00:23]} Qb7 {[%emt 0:03:04]} 30. Red3 {[%emt 0:02:28]} Qe4 {[%emt 0:01:51]} 31. Rd1 {[%emt 0:04:33]} Qc2 {[%emt 0:02:21]} 32. Qd2 {[%emt 0:04:41]} Qxd2 {[%emt 0:00:24]} 33. R1xd2 {[%emt 0:00:02]} Rxd6 {[%emt 0:02:37]} 34. exd6+ {[%emt 0:00:02]} Kd7 {[%emt 0:00:06]} 35. Kf2 {[%emt 0:00:40]} Rg6 {[%emt 0:00:23]} 36. a3 {[%emt 0:00:39]} f6 {[%emt 0:01:19]} 37. b4 {[%emt 0:01:31]} e5 {[%emt 0:00:20]} 38. Ke3 {[%emt 0:01:19]} Be6 {[%emt 0:00:26]} 39. bxc5 {[%emt 0:02:29]} bxc5 {[%emt 0:00:09]} 40. Ke4 {[%emt 0:03:51]} Rg8 {[%emt 0:02:40]} 41. Rf2 {[%emt 0:00:00]} Rg6 {[%emt 0:00:27]} 42. Rd2 {[%emt 0:01:53]} Rg5 {[%emt 0:00:05]} 43. Rf2 {[%emt 0:00:43]} Rg6 {[%emt 0:02:30]} 44. Rd2 {[%emt 0:00:13]} Rg7 {[%emt 0:00:02]} 45. Bc3 {[%emt 0:03:13]} Kc6 {[%emt 0:00:45]} 1/2-1/2

[Event "ENG-ch Women 2019"]
[Site "Hull"]
[Date "2019.09.01"]
[Round "4.2"]
[White "Posadas, Rayelynn"]
[Black "Bhatia, Kanwal K"]
[Result "1-0"]
[ECO "C45"]
[WhiteElo "1885"]
[BlackElo "2044"]
[Annotator "NA"]
[PlyCount "57"]
[EventDate "2019.08.30"]
[EventType "swiss"]
[EventCountry "ENG"]
[SourceTitle "playchess.com"]
[Source "ChessBase"]
[SourceQuality "1"]
[TimeControl "5400+30"]

1. e4 {[%emt 0:00:00]} e5 {[%emt 0:00:04]} 2. Nf3 {[%emt 0:00:00]} Nc6 {[%emt 0:00:05]} 3. d4 {[%emt 0:00:00]} exd4 {[%emt 0:00:13]} 4. Nxd4 {[%emt 0:00:00]} Bc5 {[%emt 0:00:25]} 5. Be3 {[%emt 0:00:00]} Qf6 {[%emt 0:00:30]} 6. c3 {[%emt 0:00:00]} d6 {[%emt 0:01:23]} 7. Bc4 {[%emt 0:07:01]} Nge7 {[%emt 0:00:26]} 8. O-O {[%emt 0:00:56]} Ne5 {[%emt 0:00:28]} 9. Be2 {[%emt 0:04:29]} Qg6 {[%emt 0:00:52]} 10. Kh1 {[%emt 0:03:07]} O-O {[%emt 0:06:14]} 11. Nd2 {[%emt 0:00:21]} Bb6 {[%emt 0:18:48]} 12. Bh5 {[%emt 0:06:33]} Qf6 {[%emt 0:00:20]} 13. f4 {[%emt 0:02:40]} N5c6 {[%emt 0:12:04]} 14. Nc4 {[%emt 0:21:36]} Bxd4 {[%emt 0:09:01]} 15. Bxd4 {[%emt 0:05:54]} Nxd4 {[%emt 0:00:14]} 16. cxd4 {[%emt 0:00:51]} b6 {[%emt 0:07:31]} 17. e5 {[%emt 0:05:21]} dxe5 {[%emt 0:01:19]} 18. fxe5 {[%emt 0:00:43]} Qe6 {[%emt 0:00:59]} 19. Ne3 {[%emt 0:04:41]} Ba6 {[%emt 0:06:04]} 20. Rf4 {[%emt 0:07:34]} Qh6 {[%emt 0:08:03]} 21. Bxf7+ {[%emt 0:09:52]} Kh8 {[%emt 0:07:29]} 22. Qf3 {[%emt 0:00:15]} Ng6 {[%emt 0:06:23]} 23. Rf5 {[%emt 0:01:45]} Nh4 {[%emt 0:00:46]} 24. Qg3 {[%emt 0:00:41]} Ng6 {[%emt 0:08:46]} 25. e6 {[%emt 0:02:14]} Ne7 {[%emt 0:01:29]} 26. Rh5 {[%emt 0:01:22]} Qf6 {[%emt 0:00:16]} 27. Ng4 {[%emt 0:00:21]} Qxd4 {[%emt 0:01:28]} 28. Rxh7+ {[%emt 0:00:08]} Kxh7 {[%emt 0:00:09]} 29. Qh4# {[%emt 0:00:03]} 1-0

[Event "ENG-ch Women 2019"]
[Site "Hull"]
[Date "2019.09.01"]
[Round "4.3"]
[White "Milewska, Agnieszka"]
[Black "Longson, Sarah N"]
[Result "0-1"]
[ECO "D35"]
[WhiteElo "1660"]
[BlackElo "2095"]
[Annotator "NA"]
[PlyCount "112"]
[EventDate "2019.08.30"]
[EventType "swiss"]
[EventCountry "ENG"]
[SourceTitle "playchess.com"]
[Source "ChessBase"]
[SourceQuality "1"]
[TimeControl "5400+30"]

1. d4 {[%emt 0:00:17]} d5 {[%emt 0:00:00]} 2. c4 {[%emt 0:00:57]} e6 {[%emt 0:00:00]} 3. Bf4 {[%emt 0:01:02]} Nf6 {[%emt 0:04:38]} 4. Nc3 {[%emt 0:02:06]} c6 {[%emt 0:00:59]} 5. cxd5 {[%emt 0:01:27]} exd5 {[%emt 0:01:14]} 6. Nf3 {[%emt 0:00:56]} Bf5 {[%emt 0:03:39]} 7. Qb3 {[%emt 0:01:43] D35: Queen's Gambit Declined: Exchange Variation} (7. e3 Be7 8. Be2 Nbd7 9. O-O O-O 10. Ne5 Re8 11. Re1 Nf8 12. Rc1 Ne6 13. Bg3 Bd6 14. Bf1 Bg6 15. f3 Qb8 16. Qd2 Re7 17. b4 Nh5 {½-½ (17) Bryzgalin,K (2427)-Santos Ruiz,M (2527) Forni di Sopra 2018}) 7... Qb6 {[%emt 0:02:36]} 8. Qxb6 {[%emt 0:00:52]} axb6 {[%emt 0:00:01]} 9. a3 {[%emt 0:03:23]} Nbd7 {[%emt 0:04:16]} 10. e3 {[%emt 0:00:32]} b5 {[%emt 0:01:31]} 11. Rc1 {[%emt 0:05:50]} b4 {[%emt 0:02:04]} 12. axb4 {[%emt 0:00:28]} Bxb4 {[%emt 0:00:07]} 13. Nd2 {[%emt 0:00:31]} O-O {[%emt 0:03:22]} 14. Be2 {[%emt 0:00:59]} h6 $146 {[%emt 0:04:21]} ({Predecessor:} 14... Ne4 15. Ndxe4 Bxe4 {½-½ (81) Debnar,L (2280)-Banduka,Z Slovakia 1997}) 15. O-O {[%emt 0:00:44]} Ra7 {[%emt 0:03:20]} 16. Bf3 {[%emt 0:04:07]} Rfa8 {[%emt 0:04:45]} 17. h3 {[%emt 0:01:16]} g5 {[%emt 0:02:36]} 18. Bh2 {[%emt 0:05:47]} Nb6 {[%emt 0:06:04]} 19. g4 {[%emt 0:00:18]} Bg6 {[%emt 0:01:25]} 20. Be2 {[%emt 0:04:23]} Nfd7 {[%emt 0:06:46]} 21. f4 {[%emt 0:01:22]} gxf4 {[%emt 0:03:48]} 22. Bxf4 {[%emt 0:02:18]} Kg7 {[%emt 0:00:51]} 23. Nf3 {[%emt 0:03:04]} f6 {[%emt 0:00:50]} 24. h4 {[%emt 0:00:25]} Na4 {[%emt 0:01:26]} 25. Nxa4 {[%emt 0:01:17]} Rxa4 {[%emt 0:00:02]} 26. g5 {[%emt 0:01:51]} hxg5 {[%emt 0:00:24]} 27. hxg5 {[%emt 0:00:15]} Be7 {[%emt 0:00:52]} 28. gxf6+ {[%emt 0:00:22]} Bxf6 {[%emt 0:00:56]} 29. Ng5 {[%emt 0:04:59]} Rb4 {[%emt 0:08:38]} 30. Bg4 {[%emt 0:01:51]} Nf8 {[%emt 0:01:29]} 31. Rf2 {[%emt 0:11:03]} Rb3 {[%emt 0:03:50]} 32. Bd1 {[%emt 0:10:41]} Rb5 {[%emt 0:01:44]} 33. Rg2 {[%emt 0:04:27]} Ra2 {[%emt 0:03:20]} 34. Bc2 {[%emt 0:10:51]} Rbxb2 {[%emt 0:02:26]} 35. Ne6+ {[%emt 0:04:40]} Nxe6 {[%emt 0:02:01]} 36. Rxg6+ {[%emt 0:00:03]} Kf7 {[%emt 0:00:15]} 37. Rg2 {[%emt 0:04:31]} Nxf4 {[%emt 0:00:37]} 38. exf4 {[%emt 0:00:01]} Bxd4+ {[%emt 0:00:09]} 39. Kf1 {[%emt 0:01:13]} Be3 {[%emt 0:02:28]} 40. Bg6+ {[%emt 0:00:19]} Kf6 {[%emt 0:00:08]} 41. Rcc2 {[%emt 0:02:27]} Rxc2 {[%emt 0:01:27]} 42. Bxc2 {[%emt 0:00:01]} Bxf4 {[%emt 0:01:54]} 43. Rg6+ {[%emt 0:02:03]} Ke5 {[%emt 0:00:23]} 44. Bd1 {[%emt 0:00:51]} Kd4 {[%emt 0:01:09]} 45. Rf6 {[%emt 0:00:39]} Be3 $19 {[%emt 0:00:46]} 46. Be2 {[%emt 0:00:41]} Rb2 {[%emt 0:01:08]} 47. Rf8 {[%emt 0:00:50]} b5 {[%emt 0:01:33]} 48. Rc8 {[%emt 0:00:21]} Rc2 {[%emt 0:01:09]} 49. Bh5 {[%emt 0:00:41]} b4 {[%emt 0:00:42]} 50. Bg6 {[%emt 0:00:12]} Rc1+ {[%emt 0:00:41]} 51. Ke2 {[%emt 0:00:06]} c5 {[%emt 0:04:37]} 52. Rd8 {[%emt 0:00:40]} Rg1 {[%emt 0:01:10]} 53. Bf7 {[%emt 0:00:54]} Rg2+ {[%emt 0:00:18]} 54. Kd1 {[%emt 0:00:09]} Kd3 {[%emt 0:02:02]} 55. Rxd5+ {[%emt 0:00:08]} Bd4 {[%emt 0:00:14]} 56. Rxd4+ {[%emt 0:01:48]} Kxd4 {[%emt 0:00:29]} 0-1

[Event "ENG-ch Women 2019"]
[Site "Hull"]
[Date "2019.09.01"]
[Round "4.4"]
[White "Varney, Zoe"]
[Black "Maladkar, Lavanya"]
[Result "1-0"]
[ECO "D27"]
[WhiteElo "1975"]
[BlackElo "1647"]
[Annotator "NA"]
[PlyCount "77"]
[EventDate "2019.08.30"]
[EventType "swiss"]
[EventCountry "ENG"]
[SourceTitle "playchess.com"]
[Source "ChessBase"]
[SourceQuality "1"]
[TimeControl "5400+30"]

1. e4 {[%emt 0:00:00]} c5 {[%emt 0:00:00]} 2. c3 {[%emt 0:00:00]} d5 {[%emt 0:00:00]} 3. exd5 {[%emt 0:00:00]} Qxd5 {[%emt 0:00:00]} 4. d4 {[%emt 0:00:00]} Nc6 {[%emt 0:00:03]} 5. Nf3 {[%emt 0:00:00]} Nf6 {[%emt 0:00:15]} 6. Be2 {[%emt 0:03:21]} cxd4 {[%emt 0:09:41]} 7. cxd4 {[%emt 0:00:15]} e6 {[%emt 0:06:19]} 8. O-O {[%emt 0:02:01]} Be7 {[%emt 0:03:51]} 9. Nc3 {[%emt 0:00:55]} Qd8 {[%emt 0:02:46]} 10. Bd3 {[%emt 0:04:55]} O-O {[%emt 0:01:25]} 11. Be3 {[%emt 0:02:37]} a6 {[%emt 0:04:22]} 12. Rc1 {[%emt 0:02:23]} Nb4 {[%emt 0:03:01]} 13. Bb1 {[%emt 0:00:28]} Nbd5 {[%emt 0:04:43]} 14. Qd3 {[%emt 0:05:52]} Nb4 {[%emt 0:10:36]} 15. Qd2 {[%emt 0:01:49]} Nbd5 {[%emt 0:01:40]} 16. Ne5 {[%emt 0:05:58]} g6 {[%emt 0:09:27]} 17. Bh6 {[%emt 0:07:53]} Re8 {[%emt 0:00:11]} 18. Rfd1 {[%emt 0:01:33]} Bf8 {[%emt 0:04:42]} 19. Bxf8 {[%emt 0:05:00]} Rxf8 {[%emt 0:00:21]} 20. Qh6 {[%emt 0:00:14]} Ne7 {[%emt 0:06:42]} 21. g4 {[%emt 0:07:40]} Kh8 {[%emt 0:04:11]} 22. Rd3 {[%emt 0:04:59]} Nfg8 {[%emt 0:04:18]} 23. Qh4 {[%emt 0:03:31]} Kg7 {[%emt 0:03:07]} 24. Rh3 {[%emt 0:07:49]} h6 {[%emt 0:02:58]} 25. g5 {[%emt 0:03:31]} Nf5 {[%emt 0:02:36]} 26. Bxf5 {[%emt 0:02:07]} exf5 {[%emt 0:01:30]} 27. gxh6+ {[%emt 0:00:08]} Kh7 {[%emt 0:00:11]} 28. Qxd8 {[%emt 0:02:02]} Rxd8 {[%emt 0:00:28]} 29. Nxf7 {[%emt 0:00:11]} Rxd4 {[%emt 0:02:59]} 30. f3 {[%emt 0:10:11]} f4 {[%emt 0:03:39]} 31. Rh4 {[%emt 0:03:10]} Nf6 {[%emt 0:02:36]} 32. Ne2 {[%emt 0:01:09]} Rd5 {[%emt 0:01:18]} 33. Nxf4 {[%emt 0:01:52]} Rf5 {[%emt 0:02:05]} 34. Rc7 {[%emt 0:00:58]} Bd7 {[%emt 0:01:02]} 35. Nh3 {[%emt 0:01:31]} Rh5 {[%emt 0:01:22]} 36. Nhg5+ {[%emt 0:00:41]} Kg8 {[%emt 0:01:11]} 37. h7+ {[%emt 0:02:45]} Nxh7 {[%emt 0:01:08]} 38. Rxh5 {[%emt 0:00:08]} gxh5 {[%emt 0:00:44]} 39. Rxd7 {[%emt 0:00:11]} 1-0

[Event "ENG-ch Women 2019"]
[Site "Hull"]
[Date "2019.09.01"]
[Round "4.5"]
[White "Bridgeman, Niamh"]
[Black "Jaufarally, Nadia"]
[Result "1-0"]
[ECO "A03"]
[WhiteElo "1511"]
[BlackElo "1934"]
[Annotator "NA"]
[PlyCount "111"]
[EventDate "2019.08.30"]
[EventType "swiss"]
[EventCountry "ENG"]
[SourceTitle "playchess.com"]
[Source "ChessBase"]
[SourceQuality "1"]
[TimeControl "5400+30"]

1. f4 {[%emt 0:00:00]} Nf6 {[%emt 0:00:00]} 2. Nf3 {[%emt 0:00:00]} g6 {[%emt 0:00:00]} 3. e3 {[%emt 0:00:20]} Bg7 {[%emt 0:00:00]} 4. Be2 {[%emt 0:00:10]} d5 {[%emt 0:00:14]} 5. O-O {[%emt 0:00:10]} O-O {[%emt 0:00:08]} 6. d3 {[%emt 0:00:16]} c5 {[%emt 0:00:13]} 7. Qe1 {[%emt 0:00:32]} Nc6 {[%emt 0:02:54]} 8. a4 {[%emt 0:00:37]} b6 {[%emt 0:03:42]} 9. Na3 {[%emt 0:03:43]} Ba6 {[%emt 0:18:47]} 10. Rb1 {[%emt 0:03:08]} Nd7 {[%emt 0:06:49]} 11. e4 {[%emt 0:10:50]} dxe4 {[%emt 0:06:33]} 12. dxe4 {[%emt 0:00:20]} Bxe2 {[%emt 0:00:12]} 13. Qxe2 {[%emt 0:00:13]} e5 {[%emt 0:01:08]} 14. Rd1 {[%emt 0:02:04]} Qe7 {[%emt 0:01:48]} 15. Nc4 {[%emt 0:09:52]} Rad8 {[%emt 0:12:01]} 16. c3 {[%emt 0:21:05]} f5 {[%emt 0:24:40]} 17. exf5 {[%emt 0:13:06]} e4 {[%emt 0:02:57]} 18. Ng5 {[%emt 0:06:38]} gxf5 {[%emt 0:00:59]} 19. Nd6 {[%emt 0:01:14]} Na5 {[%emt 0:10:23]} 20. b4 {[%emt 0:02:12]} cxb4 {[%emt 0:03:20]} 21. cxb4 {[%emt 0:00:15]} Nb8 {[%emt 0:00:29]} 22. bxa5 {[%emt 0:00:42]} Rxd6 {[%emt 0:00:08]} 23. Rxd6 {[%emt 0:00:11]} Qxd6 {[%emt 0:00:04]} 24. Qc4+ {[%emt 0:11:52]} Kh8 {[%emt 0:00:06]} 25. Be3 {[%emt 0:05:57]} Qa3 {[%emt 0:03:53]} 26. Bd4 {[%emt 0:01:17]} Qe7 {[%emt 0:00:51]} 27. Ne6 {[%emt 0:00:47]} Bxd4+ {[%emt 0:00:20]} 28. Qxd4+ {[%emt 0:00:08]} Qf6 {[%emt 0:00:46]} 29. axb6 {[%emt 0:00:43]} Qxd4+ {[%emt 0:00:14]} 30. Nxd4 {[%emt 0:00:06]} axb6 {[%emt 0:00:06]} 31. Rxb6 {[%emt 0:00:32]} Nd7 {[%emt 0:00:57]} 32. Rb5 {[%emt 0:00:22]} Ra8 {[%emt 0:00:33]} 33. Nxf5 {[%emt 0:01:03]} Rxa4 {[%emt 0:00:23]} 34. Rd5 {[%emt 0:01:02]} Nf8 {[%emt 0:00:35]} 35. Rd4 {[%emt 0:01:50]} Ra5 {[%emt 0:00:35]} 36. Ne3 {[%emt 0:00:28]} Kg7 {[%emt 0:00:25]} 37. Rxe4 {[%emt 0:00:18]} Ng6 {[%emt 0:00:20]} 38. Kf2 {[%emt 0:00:55]} Nh4 {[%emt 0:00:37]} 39. Re5 {[%emt 0:01:37]} Ra3 {[%emt 0:00:21]} 40. Nf5+ {[%emt 0:00:42]} Nxf5 {[%emt 0:00:06]} 41. Rxf5 {[%emt 0:00:05]} Kg6 {[%emt 0:00:15]} 42. Re5 {[%emt 0:00:17]} Ra2+ {[%emt 0:01:15]} 43. Kf3 {[%emt 0:00:27]} Ra3+ {[%emt 0:00:37]} 44. Re3 {[%emt 0:00:24]} Ra2 {[%emt 0:00:13]} 45. h3 {[%emt 0:00:15]} Ra6 {[%emt 0:00:52]} 46. g4 {[%emt 0:00:21]} Rb6 {[%emt 0:00:28]} 47. h4 {[%emt 0:00:12]} h6 {[%emt 0:00:37]} 48. f5+ {[%emt 0:01:13]} Kf7 {[%emt 0:00:27]} 49. Kf4 {[%emt 0:00:20]} Rb4+ {[%emt 0:00:24]} 50. Re4 {[%emt 0:00:26]} Rb1 {[%emt 0:00:19]} 51. Rc4 {[%emt 0:01:00]} Rf1+ {[%emt 0:00:24]} 52. Ke5 {[%emt 0:00:08]} Re1+ {[%emt 0:00:05]} 53. Re4 {[%emt 0:00:23]} Ra1 {[%emt 0:00:37]} 54. g5 {[%emt 0:01:58]} hxg5 {[%emt 0:00:06]} 55. hxg5 {[%emt 0:00:07]} Ra5+ {[%emt 0:00:09]} 56. Kf4 {[%emt 0:00:16]} 1-0

[Event "ENG-ch Women 2019"]
[Site "Hull"]
[Date "2019.09.01"]
[Round "4.6"]
[White "Headlong, Fenella"]
[Black "Ball, Katie C"]
[Result "1/2-1/2"]
[ECO "C02"]
[WhiteElo "1761"]
[BlackElo "1472"]
[Annotator "NA"]
[PlyCount "55"]
[EventDate "2019.08.30"]
[EventType "swiss"]
[EventCountry "ENG"]
[SourceTitle "playchess.com"]
[Source "ChessBase"]
[SourceQuality "1"]
[TimeControl "5400+30"]

1. e4 {[%emt 0:00:00]} e6 {[%emt 0:00:00]} 2. d4 {[%emt 0:00:33]} d5 {[%emt 0:00:00]} 3. e5 {[%emt 0:00:04]} c5 {[%emt 0:00:00]} 4. c3 {[%emt 0:00:04]} Ne7 {[%emt 0:01:14]} 5. Nf3 {[%emt 0:01:55]} Nec6 {[%emt 0:02:55]} 6. Be2 {[%emt 0:04:52]} b6 {[%emt 0:01:17]} 7. O-O {[%emt 0:04:52]} Ba6 {[%emt 0:01:11]} 8. Bxa6 {[%emt 0:01:11]} Nxa6 {[%emt 0:00:01]} 9. Qa4 {[%emt 0:00:09]} Nab8 {[%emt 0:00:03]} 10. dxc5 {[%emt 0:04:43]} bxc5 {[%emt 0:05:01]} 11. Qg4 {[%emt 0:01:28]} Nd7 {[%emt 0:01:48]} 12. Re1 {[%emt 0:10:50]} h5 {[%emt 0:16:07]} 13. Qg3 {[%emt 0:07:12]} g6 {[%emt 0:06:46]} 14. Na3 {[%emt 0:19:23]} Qb8 {[%emt 0:08:28]} 15. Ng5 {[%emt 0:22:17]} Ncxe5 {[%emt 0:29:25]} 16. f4 {[%emt 0:01:06]} Ng4 {[%emt 0:09:36]} 17. Qd3 {[%emt 0:07:43]} Be7 {[%emt 0:01:10]} 18. Nxe6 {[%emt 0:04:35]} Rg8 {[%emt 0:06:50]} 19. Qxd5 {[%emt 0:01:50]} fxe6 {[%emt 0:00:47]} 20. Qxe6 {[%emt 0:00:14]} Rg7 {[%emt 0:00:19]} 21. Nc4 {[%emt 0:00:51]} Kd8 {[%emt 0:01:25]} 22. Rd1 {[%emt 0:00:49]} Bf8 {[%emt 0:02:04]} 23. h3 {[%emt 0:00:51]} Nh6 {[%emt 0:00:24]} 24. Ne5 {[%emt 0:00:17]} Qc8 {[%emt 0:00:57]} 25. Qf6+ {[%emt 0:02:52]} Kc7 {[%emt 0:01:28]} 26. Qc6+ {[%emt 0:00:08]} Kd8 {[%emt 0:00:10]} 27. Qf6+ {[%emt 0:01:48]} Kc7 {[%emt 0:00:08]} 28. Qc6+ {[%emt 0:00:01]} 1/2-1/2